bitfinex-derivatives/quotes_ETHF0:USTF0_20251031
["timestamp","ask_amount","ask_price","bid_price","bid_amount"]
[1761878583830,10.121,3820.9,3820.8,4.0997]
[1761878584330,10.12,3820.9,3820.8,4.10194958]
[1761878584727,10.12,3820.9,3820.8,3.68584958]
[1761878584927,10.12,3820.9,3820.8,3.21004958]
[1761878586321,10.12,3820.9,3820.8,0.00224958]
[1761878586832,10.141,3820.9,3820.8,0.00224958]
[1761878587326,0.89,3820.9,3820.8,0.00224958]
[1761878587824,8.063,3820.9,3820.8,0.00224958]
[1761878592331,10.142,3820.9,3820.8,3.47504958]
[1761878592539,10.142,3820.9,3820.8,0.00224958]
[1761878593835,10.142,3820.9,3820.8,0.70434958]
[1761878594131,0.89,3820.9,3820.8,0.97874958]
[1761878594338,7.474,3820.9,3820.8,0.97874958]
[1761878594534,0.6559,3821.3,3821.2,0.265]
[1761878594734,10.1801,3821.3,3821.2,4.1843]
[1761878595131,10.1801,3821.3,3821.2,3.4728]
[1761878595526,10.1801,3821.3,3821.2,3.2078]
[1761878596237,0.95365532,3821.7,3821.6,0.7156]
[1761878596438,10.77340259,3821.7,3821.6,0.7156]
[1761878596733,0.95365532,3821.7,3821.6,0.9933]
[1761878596930,10.19965532,3821.7,3821.6,0.9933]
[1761878597328,0.95365532,3821.7,3821.6,0.9933]
[1761878597535,8.36765532,3821.7,3821.6,0.9933]
[1761878598252,7.96205532,3821.7,3821.6,4.2011]
[1761878598447,7.96205532,3821.7,3821.6,5.30707871]
[1761878598736,9.79605532,3821.7,3821.6,4.2011]
[1761878599239,10.20165532,3821.7,3821.6,4.2011]
[1761878599838,9.79605532,3821.7,3821.6,4.2011]
[1761878600035,9.25075532,3821.7,3821.6,4.2011]
[1761878600236,9.24775532,3821.7,3821.6,4.2011]
[1761878600631,9.53195532,3821.7,3821.6,4.2011]
[1761878601137,9.24775532,3821.7,3821.6,4.2011]
[1761878601334,0.00275532,3821.7,3821.6,4.2011]
[1761878601536,9.24575532,3821.7,3821.6,4.2011]
[1761878601732,0.00275532,3821.7,3821.6,4.2011]
[1761878602339,0.00036128,3821.7,3821.6,45.0011]
[1761878602635,0.9509,3822.7,3822.6,0.9933]
[1761878602834,0.9509,3822.7,3822.6,4.2011]
[1761878603143,0.5453,3822.7,3822.6,4.2011]
[1761878603441,7.33399436,3822.7,3822.6,4.2011]
[1761878604028,0.28689436,3822.7,3822.6,4.2011]
[1761878604232,0.00269436,3822.7,3822.6,4.2011]
[1761878604835,0.00269436,3822.7,3822.6,45.0011]
[1761878605841,1.49219799,3824.0,3822.6,45.0011]
[1761878606033,0.5453,3823.7,3823.6,0.9933]
[1761878606441,10.1939,3824.0,3823.9,0.9933]
[1761878606639,10.93249144,3824.0,3823.9,3.2078]
[1761878606942,10.19593957,3824.0,3823.9,4.20356847]
[1761878607145,10.20693957,3824.0,3823.9,4.20356847]
[1761878607539,9.80133957,3824.0,3823.9,4.20356847]
[1761878608264,9.54023957,3824.0,3823.9,4.20356847]
[1761878608540,10.37113957,3824.0,3823.9,3.21026847]
[1761878608746,10.20693957,3824.0,3823.9,4.20356847]
[1761878608949,10.20693957,3824.0,3823.9,45.00356847]
[1761878610542,10.22193957,3824.0,3823.9,45.00356847]
[1761878610743,10.38613957,3824.0,3823.9,45.00356847]
[1761878610945,10.38613957,3824.0,3823.9,44.29526847]
[1761878611142,10.38613957,3824.0,3823.1,3.2078]
[1761878611143,0.5453,3823.6,3823.1,3.2078]
[1761878611348,0.9509,3822.8,3822.7,3.7705]
[1761878611548,10.2199,3822.8,3822.7,3.7705]
[1761878611854,9.8143,3822.8,3822.7,4.2011]
[1761878612045,9.269,3822.8,3822.7,4.2011]
[1761878612353,9.269,3822.8,3822.7,4.20405302]
[1761878612646,0.9509,3823.1,3823.0,0.7156]
[1761878612848,10.2189,3823.1,3823.0,0.7156]
[1761878613252,0.9509,3822.8,3822.7,3.92635302]
[1761878613452,0.9509,3822.8,3822.7,3.49575302]
[1761878615648,0.2842,3822.8,3822.7,4.20405302]
[1761878615845,10.2139,3822.8,3822.7,3.64135302]
[1761878616050,9.8083,3822.8,3822.7,4.20405302]
[1761878616447,10.2079,3822.8,3822.7,4.20405302]
[1761878618952,10.2079,3822.8,3822.7,3.21075302]
[1761878620652,10.2079,3822.8,3822.7,3.49575302]
[1761878623145,10.2079,3822.8,3822.7,4.13465302]
[1761878624456,0.9509,3822.8,3822.7,4.13465302]
[1761878624757,1.0371,3823.5,3823.4,0.2874]
[1761878624958,5.6706,3823.5,3823.4,3.2078]
[1761878625452,0.9324,3823.5,3823.4,4.1341]
[1761878625653,9.5242,3823.5,3823.4,4.1341]
[1761878626054,9.5242,3823.5,3823.4,3.4952]
[1761878626055,10.3463,3823.5,3823.4,3.4952]
[1761878626359,10.3463,3823.5,3823.4,3.8726]
[1761878626556,10.3463,3823.5,3823.4,4.1341]
[1761878628260,9.5242,3823.5,3823.4,4.1341]
[1761878628451,10.1784,3823.5,3823.4,4.1341]
[1761878628853,10.3463,3823.5,3823.4,3.4952]
[1761878629251,10.3463,3823.5,3823.4,3.8726]
[1761878629451,10.1784,3823.5,3823.4,4.1341]
[1761878629955,9.246,3823.5,3823.4,4.1341]
[1761878630359,9.5242,3823.5,3823.4,4.1341]
[1761878630751,9.9197,3823.5,3823.4,4.1341]
[1761878632252,10.1784,3823.5,3823.4,4.1341]
[1761878632950,9.7829,3823.5,3823.4,4.1341]
[1761878633152,10.1784,3823.5,3823.4,4.1341]
[1761878633756,10.92171588,3823.5,3823.4,3.2078]
[1761878634852,0.3955,3822.9,3822.7,0.29035302]
[1761878635046,10.1714,3822.8,3822.7,0.29035302]
[1761878635250,10.1714,3822.8,3822.7,44.29815302]
[1761878635451,10.74679743,3822.8,3822.7,44.29815302]
[1761878635757,10.74679791,3822.8,3822.7,44.29815302]
[1761878636059,10.1714,3822.8,3822.7,3.49815302]
[1761878636650,10.1714,3822.8,3822.7,3.21075302]
[1761878637654,10.1714,3822.8,3822.7,3.49815302]
[1761878638271,10.1714,3822.8,3822.7,4.13705302]
[1761878638753,0.9324,3823.1,3823.0,1.0959]
[1761878639060,10.74376088,3823.1,3823.0,0.3774]
[1761878639254,0.9324,3822.8,3822.7,3.49815302]
[1761878639453,10.1684,3822.8,3822.7,3.49815302]
[1761878640153,10.1684,3822.8,3822.7,4.13705302]
[1761878641170,10.1684,3822.8,3822.7,3.21075302]
[1761878641459,0.9324,3822.4,3822.3,3.2078]
[1761878641653,10.743944,3822.4,3822.3,3.2078]
[1761878642355,1.507944,3822.4,3822.3,4.1341]
[1761878642658,1.3565044,3823.2,3822.5,0.4323]
[1761878642659,9.235,3822.6,3822.5,0.4323]
[1761878642859,0.9324,3823.0,3822.9,0.2874]
[1761878643059,10.90873036,3823.0,3822.9,3.4952]
[1761878643858,10.90873036,3823.0,3822.9,3.2078]
[1761878644552,0.9324,3822.6,3822.5,3.2078]
[1761878644752,0.9324,3822.6,3822.3,0.00222597]
[1761878644753,0.2782,3822.4,3822.3,0.00222597]
[1761878644954,0.9324,3822.4,3822.3,0.00222597]
[1761878645151,2.32537575,3822.4,3821.3,3.2078]
[1761878645353,0.9324,3821.4,3821.3,3.2078]
[1761878645553,10.1734,3821.4,3821.3,3.2078]
[1761878646257,10.1734,3821.4,3821.3,3.49791549]
[1761878647862,10.1734,3821.4,3821.3,3.21051549]
[1761878651969,10.1734,3821.4,3821.3,3.78701549]
[1761878652466,10.1734,3821.4,3821.3,3.21051549]
[1761878659461,10.1734,3821.4,3821.3,0.00271549]
[1761878662682,10.74320267,3821.4,3821.3,0.00271549]
[1761878664774,10.82160267,3821.4,3821.3,0.00271549]
[1761878664979,10.74320267,3821.4,3821.3,0.00271549]
[1761878665478,0.7912,3820.5,3820.4,3.765]
[1761878665675,10.0449,3820.5,3820.4,3.765]
[1761878665978,10.0449,3820.5,3820.4,3.2078]
[1761878666480,10.04794971,3820.5,3820.4,3.21071488]
[1761878667376,10.12634971,3820.5,3820.4,3.21071488]
[1761878667563,10.61841429,3820.5,3820.4,3.21071488]
[1761878668286,11.97612785,3820.5,3820.4,3.21071488]
[1761878670072,11.40566327,3820.5,3820.4,3.21071488]
[1761878670273,11.26347917,3820.5,3819.7,0.02618041]
[1761878670475,1.35771356,3819.8,3819.7,0.02618041]
[1761878670776,11.14932946,3819.8,3819.0,44.0078]
[1761878671072,4.56551356,3819.1,3819.0,0.4791]
[1761878671275,14.36612946,3819.1,3819.0,0.0027065]
[1761878671476,14.44452946,3819.1,3818.4,0.3404]
[1761878671664,14.44452946,3819.1,3817.5,3.3465]
[1761878671665,4.56551356,3818.5,3817.5,0.3404]
[1761878671871,3.2078,3817.7,3817.6,0.7908]
[1761878672078,3.2078,3817.7,3817.6,2.14851356]
[1761878672276,9.243,3817.7,3817.6,0.7908]
[1761878672476,3.2078,3818.3,3818.1,0.3404]
[1761878672671,3.2078,3818.7,3818.6,0.5572]
[1761878672882,0.00199705,3818.7,3818.6,0.7908]
[1761878673070,7.83699705,3818.7,3818.6,0.7908]
[1761878673271,9.24799705,3818.7,3818.6,0.7908]
[1761878673675,0.00199705,3818.7,3818.6,0.7908]
[1761878673969,9.25099705,3818.7,3818.6,0.7908]
[1761878674169,0.00199705,3818.7,3818.6,0.7908]
[1761878674366,6.46299705,3818.7,3818.6,0.7908]
[1761878675172,6.46299705,3818.7,3818.6,0.5572]
[1761878675976,6.46299705,3818.7,3818.6,0.7908]
[1761878676980,0.00199705,3818.7,3818.6,0.7908]
[1761878677474,8.30499705,3818.7,3818.6,0.7908]
[1761878678079,3.2078,3819.7,3819.6,0.7908]
[1761878678273,3.2078,3820.2,3820.1,0.3404]
[1761878678580,12.148785,3820.2,3820.1,0.3404]
[1761878678777,8.940985,3820.2,3820.1,0.3404]
[1761878679075,0.568985,3820.2,3820.1,0.3404]
[1761878679284,9.82671477,3820.2,3820.1,0.3404]
[1761878679577,3.77951477,3820.2,3819.8,0.3404]
[1761878679778,0.568985,3820.1,3820.0,0.4791]
[1761878679979,6.847985,3820.1,3820.0,0.4791]
[1761878680180,6.847985,3820.1,3819.5,0.1387]
[1761878680484,3.2078,3819.8,3819.2,0.3404]
[1761878680693,0.0874,3819.3,3819.2,0.5545]
[1761878680979,0.0437,3819.1,3819.0,0.6017]
[1761878681185,0.0874,3819.1,3819.0,0.1387]
[1761878681382,0.0874,3819.1,3819.0,0.7533]
[1761878681591,0.0874,3818.8,3818.7,0.4005]
[1761878682085,0.0874,3818.6,3818.5,0.5392]
[1761878682385,9.3654,3818.6,3818.5,0.5392]
[1761878682582,9.3654,3818.6,3818.5,0.7533]
[1761878682789,9.3217,3818.6,3818.5,1.0022]
[1761878683296,9.3654,3818.6,3818.5,1.0022]
[1761878683480,9.3654,3818.6,3818.5,0.7533]
[1761878683680,9.3654,3818.6,3818.5,0.5392]
[1761878684188,9.3654,3818.6,3818.5,0.7533]
[1761878685291,0.0874,3818.3,3818.2,44.0078]
[1761878685688,0.0437,3818.3,3818.2,44.0078]
[1761878685889,0.0437,3818.3,3818.2,3.8224]
[1761878686078,0.0437,3818.3,3818.2,4.0713]
[1761878686485,0.0874,3818.3,3818.2,3.8224]
[1761878686689,0.0437,3818.3,3818.2,4.0713]
[1761878686986,9.3654,3818.6,3818.5,0.744]
[1761878687384,9.3654,3818.6,3818.5,0.9929]
[1761878687589,9.3654,3818.6,3818.5,0.744]
[1761878688685,3.2078,3819.2,3818.7,0.463]
[1761878688885,0.0874,3819.3,3819.2,0.8635]
[1761878689076,8.5004,3819.3,3819.2,0.8635]
[1761878689276,9.3107,3819.3,3819.2,0.8635]
[1761878689891,9.267,3819.3,3819.2,0.8635]
[1761878691484,3.2515,3819.6,3819.5,0.744]
[1761878691684,3.2078,3820.0,3819.9,0.8635]
[1761878691879,13.12937313,3820.0,3819.9,0.4005]
[1761878692084,13.17307313,3820.0,3819.9,0.4005]
[1761878692291,13.12937313,3820.0,3819.9,0.4005]
[1761878692491,13.12937313,3820.0,3819.9,0.6146]
[1761878694496,0.0874,3819.6,3819.5,0.1294]
[1761878694691,9.3474,3819.6,3819.5,0.1294]
[1761878694898,9.3474,3819.6,3819.5,0.5299]
[1761878695197,9.3484,3819.6,3819.5,0.744]
[1761878695596,9.3484,3819.6,3819.5,0.5299]
[1761878696293,9.3484,3819.6,3819.5,0.744]
[1761878696793,3.2078,3820.0,3819.9,0.8635]
[1761878696999,13.07881581,3820.0,3819.9,0.8635]
[1761878697391,3.82181581,3820.0,3819.9,0.8635]
[1761878697590,9.257,3820.0,3819.9,0.8635]
[1761878699299,9.257,3820.0,3819.5,0.1294]
[1761878699300,0.04642977,3820.2,3820.1,0.6146]
[1761878699496,9.29942977,3820.2,3820.1,0.6146]
[1761878699800,9.91359607,3820.2,3820.1,0.8635]
[1761878700994,9.86989607,3820.2,3820.1,0.8635]
[1761878701191,0.00272977,3820.2,3820.1,0.8635]
[1761878701396,9.25172977,3820.2,3820.1,0.8635]
[1761878702194,9.33912977,3820.2,3820.1,0.8635]
[1761878702600,9.38282977,3820.2,3820.1,0.4005]
[1761878702801,0.0437,3819.7,3819.5,0.1294]
[1761878703109,0.1311,3818.8,3818.7,0.4005]
[1761878703397,0.1311,3818.8,3817.6,1.41277766]
[1761878703398,0.0874,3818.3,3818.2,0.4005]
[1761878703601,9.3424,3818.3,3818.2,0.4005]
[1761878704494,9.3861,3818.3,3818.2,0.4005]
[1761878704697,9.3861,3818.3,3818.0,0.5299]
[1761878704698,0.0874,3818.1,3818.0,0.5299]
[1761878705493,0.0874,3818.6,3818.5,0.1294]
[1761878705697,3.2515,3818.8,3818.7,0.463]
[1761878705997,12.5065,3818.8,3818.7,0.463]
[1761878706303,12.5502,3818.8,3818.7,0.8635]
[1761878706507,0.1311,3818.6,3818.5,0.5299]
[1761878706905,0.0874,3818.6,3818.5,0.5299]
[1761878708599,12.4628,3818.8,3818.0,0.1294]
[1761878708600,0.0874,3818.3,3818.0,0.1294]
[1761878708802,0.0437,3818.1,3818.0,0.5924]
[1761878709101,0.0874,3818.1,3818.0,0.1294]
[1761878709295,0.0874,3818.1,3818.0,0.5299]
[1761878710402,3.2515,3818.8,3818.0,0.9929]
[1761878710608,0.0437,3818.6,3818.5,0.5924]
[1761878710904,0.61104912,3818.6,3818.5,0.5924]
[1761878711101,0.61104912,3818.6,3818.5,0.4592]
[1761878711703,0.56734912,3818.6,3818.1,0.3298]
[1761878711899,0.56712123,3818.5,3818.2,0.574]
[1761878712203,7.79,3818.7,3818.6,0.3298]
[1761878712400,8.35706778,3818.7,3818.6,0.3298]
[1761878712799,0.56706778,3818.7,3818.6,0.3298]
[1761878712999,9.17906778,3818.7,3818.6,0.3298]
[1761878713314,9.83006778,3818.7,3818.6,0.3298]
[1761878713698,9.83006778,3818.7,3818.6,0.574]
[1761878714010,3.2078,3819.2,3819.1,0.574]
[1761878714302,13.03490982,3819.2,3819.1,0.3298]
[1761878714501,13.03493286,3819.2,3819.1,0.3298]
[1761878715508,3.2078,3819.6,3819.5,0.9657]
[1761878715804,12.4718,3819.6,3819.5,0.4804]
[1761878716008,12.4718,3819.6,3819.5,0.7246]
[1761878716210,12.4718,3819.6,3819.5,0.9585]
[1761878716796,3.2078,3819.6,3819.5,0.9585]
[1761878717000,9.273,3819.6,3819.5,0.9585]
[1761878717911,3.2078,3820.0,3819.9,0.7908]
[1761878718112,13.04702283,3820.0,3819.9,0.3297]
[1761878718311,13.04702283,3820.0,3819.2,0.3297]
[1761878718511,13.04702283,3820.0,3819.0,0.4803]
[1761878718512,3.2078,3819.3,3819.0,0.4803]
[1761878718707,9.273,3819.2,3819.0,0.4803]
[1761878719016,9.273,3819.2,3819.1,0.3297]
[1761878719810,9.273,3819.2,3819.1,0.5569]
[1761878720013,3.2078,3819.3,3819.1,0.7908]
[1761878720310,3.2078,3819.3,3819.0,0.1506]
[1761878720311,3.2078,3819.3,3819.2,0.7908]
[1761878720517,12.4788,3819.3,3819.2,0.7908]
[1761878721417,12.4788,3819.3,3819.2,0.3297]
[1761878722015,12.4788,3819.3,3819.2,0.5569]
[1761878722914,12.4788,3819.3,3819.2,0.7908]
[1761878723613,3.2078,3819.8,3819.7,0.2272]
[1761878723809,3.2078,3819.8,3819.5,0.134]
[1761878723810,13.0390156,3819.8,3819.5,0.134]
[1761878724014,12.4718,3819.8,3819.3,0.3297]
[1761878724215,12.4718,3819.8,3819.7,0.2272]
[1761878724426,12.4718,3819.8,3819.7,0.5569]
[1761878724614,12.4718,3819.8,3819.7,0.3297]
[1761878724923,13.03904307,3819.8,3819.7,0.3297]
[1761878726217,12.4718,3819.8,3819.7,0.7908]
[1761878727307,0.00272977,3820.2,3819.8,0.3297]
[1761878727308,3.21052977,3820.2,3819.8,0.3297]
[1761878727512,3.21052977,3820.2,3819.5,0.134]
[1761878727513,9.82638259,3820.1,3820.0,0.3612]
[1761878728023,9.82638259,3820.1,3820.0,0.4637]
[1761878728213,9.82638259,3820.1,3819.6,0.3297]
[1761878728516,3.2078,3819.8,3819.0,3.3418]
[1761878728726,1.721843,3819.1,3818.6,0.3297]
[1761878728920,3.2078,3818.9,3818.6,0.3297]
[1761878729222,0.5674308,3818.8,3818.5,0.4803]
[1761878729420,3.2078,3818.9,3818.6,0.3297]
[1761878729618,3.2078,3818.9,3818.8,0.3297]
[1761878729822,3.77524974,3818.9,3818.8,0.5569]
[1761878730023,3.77524974,3818.9,3818.8,0.3297]
[1761878730214,3.77524974,3818.9,3818.6,0.3297]
[1761878730413,0.56744974,3818.8,3818.6,0.3297]
[1761878734427,0.56744974,3818.8,3818.7,0.5569]
[1761878735431,0.56744974,3818.8,3818.7,0.3297]
[1761878735730,0.56744974,3818.8,3818.1,0.3297]
[1761878735928,3.2078,3818.3,3818.1,0.3297]
[1761878736132,9.82244974,3818.2,3818.1,0.3297]
[1761878737734,9.255,3818.2,3818.1,0.5569]
[1761878737925,9.255,3818.2,3817.7,0.3297]
[1761878738124,9.255,3818.2,3818.1,0.3297]
[1761878739634,13.03028642,3818.2,3818.1,0.3297]
[1761878740134,13.03028642,3818.2,3818.0,0.134]
[1761878740321,12.4628,3818.2,3818.0,0.134]
[1761878740522,12.4628,3818.2,3818.0,0.4637]
[1761878740925,12.4628,3818.2,3818.1,0.3511]
[1761878741122,1.721843,3819.1,3818.1,0.8077]
[1761878741123,3.2078,3818.6,3818.1,0.8077]
[1761878741332,3.2078,3818.6,3818.5,0.4888]
[1761878741631,12.02308075,3818.6,3818.2,0.3511]
[1761878741831,0.56628075,3818.5,3818.4,0.3511]
[1761878742236,0.56628075,3818.5,3818.4,0.5742]
[1761878742434,0.56628075,3818.5,3818.4,0.8077]
[1761878743125,3.2078,3818.6,3818.5,0.9454]
[1761878743436,12.4518,3818.6,3818.5,0.9454]
[1761878743822,12.4518,3818.6,3818.5,0.7119]
[1761878744021,13.01785594,3818.6,3818.5,0.4888]
[1761878746631,13.01785594,3818.6,3818.0,0.4851]
[1761878746930,0.64445594,3818.5,3818.1,0.3511]
[1761878747230,0.56605594,3818.4,3818.1,0.3511]
[1761878747432,9.242,3818.3,3818.1,0.3511]
[1761878751238,9.236,3818.2,3818.1,0.5742]
[1761878752039,9.236,3818.2,3818.1,0.3511]
[1761878752335,9.80223019,3818.2,3818.1,0.3511]
[1761878753240,9.80223019,3818.2,3818.1,0.5742]
[1761878753441,9.80223019,3818.2,3818.1,0.3511]
[1761878753841,9.80223019,3818.2,3817.9,0.3511]
[1761878754039,9.236,3818.2,3817.9,0.3511]
[1761878754242,9.236,3818.2,3818.0,0.1377]
[1761878754542,9.236,3818.2,3818.0,0.4888]
[1761878755038,9.236,3818.2,3818.1,0.5742]
[1761878755245,9.80179863,3818.2,3818.1,0.3511]
[1761878755443,9.80179863,3818.2,3818.1,0.5742]
[1761878755644,9.80179863,3818.2,3818.1,0.8077]
[1761878755843,9.80079863,3818.2,3818.1,0.8077]
[1761878756343,3.2078,3818.6,3818.5,0.7119]
[1761878756543,13.00987629,3818.6,3818.5,0.7119]
[1761878757536,3.77487629,3818.6,3818.5,0.9454]
[1761878757742,13.00987629,3818.6,3818.5,0.9454]
[1761878758049,9.235,3818.6,3818.5,0.9454]
[1761878758250,9.80209323,3818.6,3818.5,0.9454]
[1761878760362,0.56809323,3818.6,3818.5,0.9454]
[1761878760568,9.236,3818.6,3818.5,0.9454]
[1761878762353,9.80411887,3818.6,3818.5,0.4888]
[1761878762554,13.01191887,3818.6,3818.5,0.4888]
[1761878763151,0.56811887,3818.6,3818.5,0.9454]
[1761878763356,7.85811887,3818.6,3818.5,0.9454]
[1761878763558,11.06591887,3818.6,3818.5,0.4888]
[1761878763764,7.85811887,3818.6,3818.5,0.4888]
[1761878765054,7.85811887,3818.6,3818.5,0.7119]
[1761878767168,7.85811887,3818.6,3818.5,0.9454]
[1761878768163,0.56811887,3818.6,3818.5,0.9454]
[1761878768461,9.79311887,3818.6,3818.5,0.9454]
[1761878769571,0.56811887,3818.6,3818.5,0.9454]
[1761878769768,4.1345935,3819.4,3819.3,0.3511]
[1761878769969,11.01307009,3819.4,3819.3,0.3511]
[1761878770268,11.01307009,3819.4,3819.1,0.3511]
[1761878770455,0.56847659,3819.3,3818.6,40.8]
[1761878770656,1.49527009,3819.3,3818.6,41.1511]
[1761878770971,0.56847659,3819.2,3818.6,0.3511]
[1761878771159,0.56847659,3819.1,3818.7,0.3213]
[1761878771467,12.4308,3819.0,3818.5,0.459]
[1761878771668,0.56847659,3818.9,3818.2,0.3213]
[1761878771857,0.56847659,3818.8,3818.2,0.3213]
[1761878772057,0.56847659,3818.7,3818.2,0.3213]
[1761878772266,9.79047659,3818.6,3818.2,0.3213]
[1761878772456,0.56847659,3818.5,3818.2,0.3213]
[1761878772659,9.222,3818.6,3818.2,0.3213]
[1761878772660,0.56847659,3818.4,3818.2,0.3213]
[1761878772859,9.222,3818.6,3818.2,0.3213]
[1761878772860,0.56847659,3818.3,3818.2,0.3213]
[1761878774169,0.56847659,3818.3,3817.8,0.3213]
[1761878774367,3.2078,3817.9,3817.6,0.32387748]
[1761878774572,9.78847659,3817.8,3817.6,0.32387748]
[1761878774767,0.56847659,3817.7,3817.6,0.00257748]
[1761878775863,1.49312324,3817.7,3817.6,0.00257748]
[1761878776374,1.49259415,3817.7,3817.6,0.00257748]
[1761878777773,0.56847659,3817.7,3817.6,0.00257748]
[1761878777972,9.78747659,3817.7,3817.6,0.33537748]
[1761878778478,9.78747659,3817.7,3817.6,0.00257748]
[1761878779477,9.78747659,3817.7,3817.0,0.136]
[1761878779679,3.2078,3817.5,3817.0,0.4688]
[1761878779874,0.56847659,3817.4,3817.0,0.4688]
[1761878780178,3.2078,3817.1,3816.2,0.3328]
[1761878780370,7.59647659,3817.0,3816.6,0.3328]
[1761878780574,3.2078,3816.7,3816.5,0.136]
[1761878780775,9.79947659,3816.6,3816.5,0.136]
[1761878780974,0.56847659,3816.6,3816.3,0.3328]
[1761878781278,7.91787736,3816.5,3816.2,0.33474699]
[1761878781472,3.2078,3816.3,3816.2,0.00194699]
[1761878781777,3.77267736,3816.3,3816.2,0.00194699]
[1761878782378,3.2078,3816.3,3816.2,0.00194699]
[1761878782967,3.77211695,3816.3,3816.2,0.00194699]
[1761878783475,12.4538,3816.3,3816.2,0.00194699]
[1761878783877,3.2078,3816.3,3816.2,0.33474699]
[1761878784182,10.8208,3816.3,3816.2,0.33474699]
[1761878786080,10.8208,3816.3,3816.2,0.55804699]
[1761878786377,3.2078,3816.7,3816.6,0.5561]
[1761878786676,12.4548,3816.7,3816.6,0.5561]
[1761878787179,3.2078,3816.7,3816.6,0.7789]
[1761878787378,8.6438,3816.7,3816.6,0.7789]
[1761878787580,8.6438,3816.7,3816.6,0.3328]
[1761878789376,10.62418236,3816.7,3816.2,0.33474699]
[1761878789583,3.2078,3816.3,3816.2,0.00194699]
[1761878789768,12.4558,3816.3,3816.2,0.00194699]
[1761878791674,3.2078,3816.8,3816.5,0.136]
[1761878791985,9.248,3816.7,3816.6,0.3328]
[1761878792584,9.248,3816.7,3816.5,0.136]
[1761878792785,9.248,3816.7,3816.5,0.4688]
[1761878793177,9.248,3816.7,3816.6,0.3328]
[1761878793379,3.2078,3816.8,3816.6,0.3328]
[1761878793681,0.00230417,3817.1,3817.0,0.9149]
[1761878793984,0.00230417,3817.1,3817.0,0.6921]
[1761878794177,0.00230417,3817.1,3817.0,0.9149]
[1761878794378,0.00230417,3817.1,3817.0,0.6921]
[1761878795680,0.00230417,3817.1,3817.0,0.9149]
[1761878796679,0.00230417,3817.1,3817.0,0.4688]
[1761878797691,0.00230417,3817.1,3817.0,0.6921]
[1761878797881,0.00230417,3817.1,3817.0,0.9149]
[1761878801186,5.53130417,3817.1,3817.0,0.6916]
[1761878801392,9.30252877,3817.1,3816.5,0.136]
[1761878801591,3.2078,3816.7,3816.6,0.3491]
[1761878801792,3.7712246,3816.7,3816.6,0.3491]
[1761878802993,3.7712246,3816.7,3816.6,0.5786]
[1761878803194,3.7712246,3816.7,3816.6,0.8039]
[1761878803893,0.5634246,3816.7,3816.6,0.8039]
[1761878804097,3.2078,3817.0,3816.9,0.8039]
[1761878804292,3.77227971,3817.0,3816.9,0.8039]
[1761878804490,3.77227971,3817.0,3816.9,0.3491]
[1761878805490,3.77227971,3817.0,3816.9,0.5786]
[1761878805697,3.77227971,3817.0,3816.9,0.3491]
[1761878805997,3.77227971,3817.0,3816.5,0.4851]
[1761878806198,1.48732951,3816.9,3816.6,0.3491]
[1761878806398,3.2078,3816.7,3816.5,0.4851]
[1761878806601,9.81547971,3816.6,3816.5,0.4851]
[1761878806995,9.81547971,3816.6,3816.2,0.35104699]
[1761878807208,0.56447971,3816.5,3816.2,0.35104699]
[1761878807406,0.56447971,3816.4,3816.3,0.3491]
[1761878808708,0.56447971,3816.4,3816.3,0.5786]
[1761878809603,9.81747971,3816.4,3816.3,0.8039]
[1761878809909,0.56447971,3816.4,3816.3,0.8039]
[1761878810105,9.81447971,3816.4,3816.3,0.8039]
[1761878811106,0.56447971,3816.4,3816.3,0.8039]
[1761878811314,9.81447971,3816.4,3816.3,0.8039]
[1761878811603,0.56447971,3816.4,3816.3,0.8039]
[1761878811810,9.81147971,3816.4,3816.3,0.8039]
[1761878812309,9.81047971,3816.4,3816.3,0.8039]
[1761878812902,9.246,3816.4,3816.3,0.8039]
[1761878822014,9.246,3816.4,3816.3,41.6039]
[1761878824414,9.246,3816.4,3816.3,0.8039]
[1761878826310,9.246,3816.4,3816.3,0.5786]
[1761878826516,9.81133943,3816.4,3816.2,0.00194699]
[1761878826719,0.56533943,3816.3,3816.2,0.00194699]
[1761878826915,0.56533943,3816.3,3816.2,0.35104699]
[1761878827417,3.77313943,3816.3,3816.2,0.00194699]
[1761878827616,4.69598923,3816.3,3816.2,0.00194699]
[1761878828110,9.78933943,3816.3,3816.2,0.80584699]
[1761878828520,0.56533943,3816.3,3816.2,0.80584699]
[1761878828714,9.79033943,3816.3,3816.2,0.80584699]
[1761878830322,9.79033943,3816.3,3816.2,0.58054699]
[1761878831414,10.89907502,3816.3,3816.2,0.58054699]
[1761878832021,9.79033943,3816.3,3816.2,0.58054699]
[1761878832319,10.89907502,3816.3,3816.2,0.58054699]
[1761878833014,10.89907502,3816.3,3816.2,0.00194699]
[1761878833219,14.10687502,3816.3,3816.2,0.00194699]
[1761878833927,15.03174096,3816.3,3816.2,0.00194699]
[1761878834724,15.03162323,3816.3,3816.2,0.00194699]
[1761878837324,4.88187502,3816.3,3816.2,0.56454699]
[1761878837527,10.89407502,3816.3,3816.2,0.56454699]
[1761878837718,10.89407502,3816.3,3816.2,0.33924699]
[1761878838113,10.89407502,3816.3,3816.2,0.56454699]
[1761878838424,10.89407502,3816.3,3816.2,0.33924699]
[1761878839224,14.10187502,3816.3,3816.2,0.00194699]
[1761878840422,15.02662323,3816.3,3816.2,0.00194699]
[1761878843021,15.02662323,3816.3,3815.4,0.3373]
[1761878843022,16.13535882,3816.3,3815.4,0.3373]
[1761878843226,4.31653559,3815.5,3815.1,0.3373]
[1761878843427,1.10873559,3815.2,3815.1,0.3373]
[1761878843729,1.67407502,3815.2,3815.1,0.3373]
[1761878844229,1.67407502,3815.2,3815.1,0.33935703]
[1761878844918,1.67407502,3815.2,3815.1,0.00205703]
[1761878845427,0.56533943,3815.2,3815.1,0.00205703]
[1761878845818,0.56533943,3815.3,3815.1,0.00205703]
[1761878846215,0.56533943,3815.3,3815.1,0.33935703]